bitfinex/quotes_SOLUSD_20250310
["timestamp","ask_amount","ask_price","bid_price","bid_amount"]
[1741630470620,0.17297742,119.34,119.33,207.63579313]
[1741630470826,0.17297742,119.34,119.33,207.7779547]
[1741630471025,0.17559702,119.35,119.34,62.81134572]
[1741630471253,0.16155432,119.37,119.36,0.14216157]
[1741630471447,0.16312855,119.38,119.37,0.14216157]
[1741630471626,0.16312855,119.38,119.37,153.75781036]
[1741630471930,0.16312855,119.38,119.37,226.15462614]
[1741630472132,221.82,119.44,119.39,38.79181043]
[1741630472337,0.063,119.5,119.4,0.14216157]
[1741630472534,0.063,119.5,119.41,92.44395741]
[1741630472837,72.45981578,119.5,119.41,72.53897735]
[1741630473147,0.063,119.5,119.41,72.68113892]
[1741630473321,5.0846,119.49,119.41,92.58637916]
[1741630473523,0.063,119.49,119.41,92.58637916]
[1741630473934,5.0228,119.46,119.41,91.33078778]
[1741630474241,5.0218,119.48,119.41,99.70528778]
[1741630474441,5.0844,119.49,119.41,102.96078408]
[1741630474637,0.063,119.49,119.44,0.14216157]
[1741630474853,0.063,119.49,119.48,72.39681578]
[1741630475042,0.063,119.49,119.48,134.82383836]
[1741630475244,5.0843,119.49,119.48,134.82383836]
[1741630475448,18.4843,119.49,119.45,72.39681578]
[1741630475654,18.4843,119.49,119.42,62.42702258]
[1741630475952,31.0376,119.49,119.42,62.42702258]
[1741630476142,72.39681578,119.47,119.38,70.80352258]
[1741630476338,5.0226,119.46,119.42,72.39681578]
[1741630476540,17.5791,119.46,119.42,72.39681578]
[1741630476840,5.0226,119.46,119.44,72.39681578]
[1741630477349,5.0217,119.48,119.45,72.39681578]
[1741630477530,5.0217,119.48,119.46,72.39681578]
[1741630478358,5.0845,119.49,119.47,72.39681578]
[1741630478656,0.063,119.49,119.48,72.39681578]
[1741630478830,0.063,119.49,119.48,134.82383836]
[1741630479632,0.063,119.49,119.48,62.42702258]
[1741630479633,5.0843,119.49,119.48,62.42702258]
[1741630480349,0.063,119.49,119.46,134.82383836]
[1741630480658,0.063,119.49,119.46,62.42702258]
[1741630480953,0.063,119.49,119.46,134.82383836]
[1741630481171,0.063,119.49,119.48,72.39681578]
[1741630481540,0.063,119.49,119.46,134.82383836]
[1741630482238,0.063,119.49,119.46,62.42702258]
[1741630482457,5.0843,119.49,119.46,62.42702258]
[1741630483559,5.0843,119.49,119.46,134.82383836]
[1741630483859,0.063,119.49,119.47,72.39681578]
[1741630484155,0.063,119.49,119.47,134.82383836]
[1741630484545,0.063,119.49,119.47,62.42702258]
[1741630485055,12.5523,119.5,119.47,62.42702258]
[1741630485363,221.88,119.51,119.47,134.82383836]
[1741630485537,221.88,119.51,119.47,62.42702258]
[1741630485733,294.27681578,119.51,119.47,62.42702258]
[1741630485948,72.39681578,119.49,119.42,62.42702258]
[1741630486259,72.39681578,119.45,119.4,0.03]
[1741630486441,5.0238,119.43,119.4,0.03]
[1741630486638,5.0238,119.43,119.4,72.42681578]
[1741630486864,18.3236,119.44,119.4,72.42681578]
[1741630487238,13.3,119.44,119.41,72.39681578]
[1741630487433,18.3234,119.44,119.41,72.39681578]
[1741630488064,13.3,119.44,119.41,72.39681578]
[1741630488561,18.3234,119.44,119.4,72.42681578]
[1741630489057,13.3,119.44,119.41,72.39681578]
[1741630489266,0.1616848,119.42,119.41,72.39681578]
[1741630490344,0.1616848,119.42,119.4,62.45702258]
[1741630490658,5.1859848,119.42,119.4,62.45702258]
[1741630490959,0.1616848,119.42,119.4,134.85383836]
[1741630491174,5.1859848,119.42,119.4,0.03]
[1741630491336,226.9659848,119.42,119.4,0.03]
[1741630492242,72.39681578,119.41,119.4,0.03]
[1741630492470,72.39681578,119.41,119.34,72.39681578]
[1741630492764,87.05341578,119.4,119.34,72.39681578]
[1741630493444,87.05341578,119.4,119.36,72.39681578]
[1741630493445,4.1876,119.4,119.36,72.39681578]
[1741630493656,4.1876,119.4,119.34,62.42702258]
[1741630493657,4.1876,119.4,119.37,72.39681578]
[1741630494645,221.9416848,119.42,119.38,72.39681578]
[1741630494846,226.1286848,119.42,119.39,72.39681578]
[1741630496566,221.9416848,119.42,119.39,72.39681578]
[1741630496869,221.9416848,119.42,119.37,62.42702258]
[1741630496870,221.9416848,119.42,119.4,72.39681578]
[1741630497049,221.9416848,119.42,119.41,72.39681578]
[1741630497267,226.1285848,119.42,119.37,62.42702258]
[1741630497457,226.1285848,119.42,119.37,134.82383836]
[1741630497458,298.52540058,119.42,119.37,134.82383836]
[1741630497847,221.9416848,119.42,119.39,72.39681578]
[1741630498049,221.9416848,119.42,119.4,72.39681578]
[1741630498269,221.9416848,119.42,119.39,72.39681578]
[1741630498450,226.1285848,119.42,119.38,72.39681578]
[1741630498656,308.99260058,119.42,119.37,134.82383836]
[1741630498953,72.39681578,119.4,119.35,134.82383836]
[1741630499178,85.27681578,119.4,119.35,134.82383836]
[1741630499750,12.88,119.4,119.35,80.77551578]
[1741630499950,85.27681578,119.4,119.34,72.39681578]
[1741630500160,12.88,119.4,119.33,72.39681578]
[1741630500358,72.39681578,119.39,119.34,72.39681578]
[1741630500561,85.27681578,119.4,119.34,72.39681578]
[1741630500762,72.39681578,119.38,119.33,72.39681578]
[1741630500957,20.0,119.34,119.3,72.39681578]
[1741630501164,92.39681578,119.34,119.29,72.39681578]
[1741630501466,12.314,119.37,119.31,72.39681578]
[1741630501467,72.39681578,119.36,119.31,72.39681578]
[1741630501678,72.39681578,119.36,119.3,72.39681578]
[1741630501848,6.2137,119.38,119.3,62.42702258]
[1741630502052,89.40471578,119.39,119.34,72.39681578]
[1741630502354,72.39681578,119.38,119.32,72.39681578]
[1741630502545,72.39681578,119.37,119.31,72.39681578]
[1741630502747,72.39681578,119.36,119.31,72.39681578]
[1741630502942,72.39681578,119.36,119.28,134.82383836]
[1741630502943,87.05581578,119.38,119.32,72.39681578]
[1741630503179,72.39681578,119.37,119.32,72.39681578]
[1741630503365,72.39681578,119.36,119.31,72.39681578]
[1741630503560,72.39681578,119.37,119.32,72.39681578]
[1741630503878,87.05581578,119.38,119.32,72.39681578]
[1741630504063,72.39681578,119.36,119.31,72.39681578]
[1741630504468,14.659,119.38,119.32,72.39681578]
[1741630504469,72.39681578,119.37,119.32,72.39681578]
[1741630504788,14.659,119.38,119.33,72.39681578]
[1741630504789,4.1883,119.38,119.33,72.39681578]
[1741630504972,4.1883,119.38,119.34,72.39681578]
[1741630505174,2.37677265,119.52,119.45,2.0]
[1741630505471,7.265e-05,119.54,119.51,22.0]
[1741630505683,7.265e-05,119.54,119.53,0.28432314]
[1741630505984,7.265e-05,119.54,119.5,0.14216157]
[1741630506172,7.265e-05,119.54,119.48,22.80896017]
[1741630506173,7.265e-05,119.54,119.48,4.15931131]
[1741630506360,7.265e-05,119.54,119.48,72.39681578]
[1741630506564,7.265e-05,119.54,119.46,126.32702258]
[1741630506565,294.19681578,119.53,119.46,126.32702258]
[1741630506752,72.39681578,119.52,119.42,0.28432314]
[1741630506955,294.19681578,119.53,119.46,72.39681578]
[1741630507153,221.8,119.53,119.48,72.39681578]
[1741630507348,294.19681578,119.53,119.47,72.39681578]
[1741630507554,294.19681578,119.53,119.46,72.39681578]
[1741630507866,294.19681578,119.53,119.47,72.39681578]
[1741630508177,221.8,119.53,119.49,72.39681578]
[1741630508353,221.8,119.53,119.46,72.39681578]
[1741630508552,294.19681578,119.53,119.47,72.39681578]
[1741630508772,294.19681578,119.53,119.44,0.28432314]
[1741630508773,221.8,119.53,119.49,72.39681578]
[1741630509184,0.15120484,119.5,119.48,72.39681578]
[1741630509353,0.15120484,119.5,119.47,126.32702258]
[1741630509554,0.15120484,119.5,119.46,72.39681578]
[1741630509769,0.15120484,119.5,119.44,126.32702258]
[1741630509969,0.15120484,119.5,119.4,72.39681578]
[1741630509970,0.15120484,119.5,119.4,198.72383836]
[1741630510182,91.19766948,119.5,119.44,72.39681578]
[1741630510363,0.15120484,119.5,119.46,72.39681578]
[1741630510564,0.15120484,119.5,119.47,72.39681578]
[1741630510766,0.15120484,119.5,119.49,72.39681578]
[1741630510968,0.13120484,119.5,119.49,72.39681578]
[1741630511162,0.13120484,119.5,119.49,72.53897735]
[1741630511387,0.13120484,119.5,119.49,198.86599993]
[1741630511588,0.13120484,119.5,119.49,198.72383836]
[1741630511788,0.13120484,119.5,119.49,198.86599993]
[1741630511967,0.13120484,119.5,119.49,198.72383836]
[1741630512171,0.13120484,119.5,119.49,72.39681578]
[1741630513681,0.13120484,119.5,119.49,72.53897735]
[1741630514075,0.13120484,119.5,119.49,196.89923626]
[1741630514264,0.13120484,119.5,119.49,198.72383836]
[1741630515763,0.17339577,119.51,119.49,271.40497728]
[1741630515961,0.17339577,119.51,119.5,272.65945982]
[1741630516164,0.17339577,119.51,119.5,198.72383836]
[1741630516685,0.17339577,119.51,119.5,198.86599993]
[1741630516864,0.15927032,119.52,119.5,271.12065414]
[1741630517176,0.15927032,119.52,119.51,72.39681578]
[1741630517681,0.15927032,119.52,119.51,198.72383836]
[1741630518482,0.15927032,119.52,119.51,271.40497728]
[1741630518681,0.15927032,119.52,119.51,271.26281571]
[1741630518882,0.15927032,119.52,119.51,198.72383836]
[1741630520068,0.15927032,119.52,119.51,72.39681578]
[1741630520385,0.15927032,119.52,119.5,72.39681578]
[1741630520762,0.15927032,119.52,119.51,72.39681578]
[1741630521084,0.15927032,119.52,119.49,126.32702258]
[1741630521667,0.15927032,119.52,119.51,72.39681578]
[1741630522776,0.15927032,119.52,119.51,271.26281571]
[1741630522967,0.15927032,119.52,119.51,279.77247728]
[1741630523172,0.16244827,119.53,119.52,126.4520754]
[1741630523369,0.1703064,119.54,119.53,0.28432314]
[1741630523569,0.15538887,119.55,119.53,200.00302229]
[1741630523768,0.15538887,119.55,119.54,72.39681578]
[1741630523968,0.15538887,119.55,119.54,72.53897735]
[1741630524865,0.15538887,119.55,119.54,198.74889118]
[1741630525074,0.15538887,119.55,119.54,198.60672961]
[1741630525295,0.15538887,119.55,119.54,72.39681578]
[1741630525976,12.91538887,119.55,119.51,126.06775226]
[1741630526188,12.91538887,119.55,119.53,72.39681578]
[1741630526387,12.91538887,119.55,119.52,72.39681578]
[1741630526587,12.91538887,119.55,119.54,72.39681578]
[1741630527083,12.91538887,119.55,119.48,126.06775226]
[1741630527388,221.62,119.54,119.52,72.39681578]
[1741630527576,221.62,119.54,119.53,72.39681578]
[1741630527986,221.62,119.54,119.53,72.53897735]
[1741630528284,221.62,119.54,119.53,72.39681578]
[1741630529262,221.79129398,119.54,119.52,72.39681578]
[1741630529470,221.79129398,119.54,119.53,72.39681578]
[1741630530085,221.79129398,119.54,119.53,198.60672961]
[1741630530278,0.17129398,119.54,119.53,198.60672961]
[1741630530588,0.24041851,119.55,119.54,126.3520754]
[1741630530771,0.22933052,119.57,119.54,272.40002896]
[1741630530974,0.22933052,119.57,119.56,153.4419547]
[1741630531172,221.77526216,119.58,119.57,0.14216157]
[1741630531378,221.77526216,119.58,119.57,198.46456804]
[1741630531777,221.77526216,119.58,119.57,72.39681578]
[1741630532096,234.51526216,119.58,119.56,72.39681578]
[1741630532268,234.51526216,119.58,119.57,72.39681578]
[1741630532467,234.51526216,119.58,119.52,80.76341578]
[1741630532468,239.53276216,119.58,119.56,72.39681578]
[1741630532664,239.53276216,119.58,119.52,72.39681578]
[1741630532665,311.92957794,119.58,119.53,72.39681578]
[1741630532880,239.53276216,119.58,119.56,72.39681578]
[1741630533080,239.53276216,119.58,119.55,72.39681578]
[1741630533285,252.07666216,119.58,119.55,72.39681578]
[1741630533487,17.73666216,119.58,119.53,198.46456804]
[1741630533682,234.32,119.57,119.56,72.39681578]
[1741630534002,221.58,119.57,119.56,198.46456804]
[1741630534370,221.58,119.57,119.52,126.06775226]
[1741630534572,221.58,119.57,119.53,72.39681578]
[1741630534819,293.97681578,119.57,119.52,198.46456804]
[1741630534986,17.5673,119.54,119.51,0.03]
[1741630535186,12.74,119.53,119.51,0.03]
[1741630536974,23.66964886,119.52,119.51,0.0001]
[1741630537194,317.66646464,119.52,119.51,0.0001]
[1741630537596,20.0,119.48,119.4,198.46456804]
[1741630537782,12.74,119.47,119.44,72.39681578]
[1741630537980,12.74,119.47,119.4,198.46456804]
[1741630537981,20.0,119.44,119.4,198.46456804]
[1741630538178,221.6,119.43,119.37,126.06775226]
[1741630538381,221.6,119.43,119.4,72.39681578]
[1741630538579,221.6,119.43,119.37,126.06775226]
[1741630538894,72.39681578,119.41,119.36,72.39681578]
[1741630539076,12.74,119.4,119.38,72.39681578]
[1741630539282,12.74,119.4,119.37,72.39681578]
[1741630539496,31.38964886,119.4,119.37,72.39681578]
[1741630539702,12.74,119.4,119.37,72.39681578]
[1741630539897,103.78646464,119.4,119.33,0.03]
[1741630540201,18.64964886,119.39,119.34,72.39681578]
[1741630540376,31.38964886,119.4,119.36,72.39681578]
[1741630540576,31.38964886,119.4,119.35,72.39681578]
[1741630540799,31.38964886,119.4,119.34,72.39681578]
[1741630540800,18.64964886,119.39,119.34,72.39681578]
[1741630541004,5.0263,119.37,119.33,72.42681578]
[1741630541184,5.0263,119.37,119.33,0.03]
[1741630541382,89.98901578,119.37,119.33,0.03]
[1741630541809,17.5922,119.37,119.33,72.42681578]
[1741630542110,17.5922,119.37,119.34,72.39681578]
[1741630542290,5.0263,119.37,119.34,72.39681578]
[1741630542481,5.026,119.38,119.36,72.39681578]
[1741630542683,12.74,119.37,119.36,72.39681578]
[1741630543088,12.74,119.37,119.33,0.03]
[1741630543304,17.7664,119.37,119.33,0.03]
[1741630543495,17.7664,119.37,119.35,72.39681578]
[1741630544000,17.7664,119.37,119.36,72.39681578]
[1741630544179,234.1603,119.43,119.36,72.39681578]
[1741630544380,12.74,119.41,119.4,72.39681578]
[1741630544817,12.74,119.41,119.36,126.06775226]
[1741630544991,12.74,119.41,119.37,72.39681578]
[1741630545313,12.74,119.41,119.34,198.46456804]
[1741630545314,12.74,119.41,119.39,72.39681578]
[1741630545681,12.74,119.41,119.37,72.39681578]
[1741630546190,221.6,119.43,119.4,72.39681578]
[1741630546377,221.6,119.43,119.37,126.06775226]
[1741630546706,221.6,119.43,119.42,72.39681578]
[1741630546905,221.6,119.43,119.41,72.39681578]
[1741630546906,239.3638,119.43,119.41,72.39681578]
[1741630547081,239.3638,119.43,119.39,72.39681578]
[1741630547509,234.34,119.43,119.4,72.39681578]
[1741630547709,234.34,119.43,119.37,126.06775226]
[1741630547710,239.364,119.43,119.37,126.06775226]
[1741630548010,234.34,119.43,119.4,72.39681578]
[1741630548387,239.3639,119.43,119.39,72.39681578]
[1741630548582,234.34,119.43,119.38,72.39681578]
[1741630548790,234.34,119.43,119.4,72.39681578]
[1741630549094,239.3639,119.43,119.4,72.39681578]
[1741630549400,0.15288922,119.41,119.4,72.39681578]
[1741630549909,0.15288922,119.41,119.4,144.79363156]
[1741630550117,0.15288922,119.41,119.4,72.39681578]
[1741630550581,0.15288922,119.41,119.4,270.86138382]
[1741630550989,0.15288922,119.41,119.4,271.00354539]
[1741630551186,221.75995711,119.43,119.41,0.28432314]
[1741630551385,0.15687481,119.44,119.42,72.39681578]
[1741630551607,0.15687481,119.44,119.43,72.39681578]
[1741630551808,0.15687481,119.44,119.43,198.46456804]
[1741630553117,0.15687481,119.44,119.4,126.06775226]
[1741630553306,0.15687481,119.44,119.43,72.39681578]
[1741630553791,0.15687481,119.44,119.4,198.85981578]
[1741630553998,5.18027481,119.44,119.4,126.463]
[1741630554209,17.73887481,119.44,119.4,0.063]
[1741630554400,17.73887481,119.44,119.4,72.45981578]
[1741630554994,20.0,119.41,119.4,0.063]
[1741630555308,246.8247,119.41,119.4,0.063]
[1741630555894,337.87116464,119.41,119.4,0.063]
[1741630556489,246.8247,119.41,119.38,72.39681578]
[1741630556916,246.8247,119.41,119.37,72.39681578]
[1741630557121,319.22151578,119.41,119.35,72.39681578]
[1741630557332,246.8247,119.41,119.38,72.39681578]
[1741630557619,221.8,119.41,119.4,72.39681578]
[1741630558516,221.8,119.41,119.4,144.79363156]
[1741630559102,221.8,119.41,119.4,198.79681578]
[1741630559801,226.8247,119.41,119.35,0.14216157]
[1741630560118,226.8247,119.41,119.35,126.4]
[1741630560319,221.8,119.41,119.39,72.39681578]
[1741630560520,221.8,119.41,119.38,72.39681578]
[1741630560731,239.5647,119.41,119.39,72.39681578]
[1741630561104,234.54,119.41,119.4,72.39681578]
[1741630561506,221.8,119.41,119.4,144.79363156]
[1741630562025,221.8,119.41,119.4,72.39681578]
[1741630563129,226.8247,119.41,119.4,72.39681578]
[1741630563518,226.8247,119.41,119.39,72.39681578]
[1741630564024,221.8,119.41,119.4,72.39681578]
[1741630564335,221.8,119.41,119.4,271.33579313]
[1741630564509,0.15687481,119.44,119.42,0.14216157]
[1741630564847,0.16728793,119.46,119.44,0.14216157]
[1741630565032,0.18042213,119.48,119.46,18.933972]
[1741630565332,0.03,119.51,119.46,18.933972]
[1741630565333,0.03,119.51,119.48,27.303572]
[1741630565632,0.03,119.51,119.49,1.39671873]
[1741630565926,0.03,119.51,119.49,198.93897735]
[1741630566138,0.03,119.51,119.49,198.79681578]
[1741630566826,0.03,119.51,119.49,72.39681578]
[1741630567024,0.03,119.51,119.42,81.9]
[1741630567025,0.03,119.51,119.48,72.39681578]
[1741630567235,12.92395018,119.5,119.49,72.39681578]
[1741630567425,12.92395018,119.5,119.43,8.65712314]
[1741630567625,12.92395018,119.5,119.49,72.39681578]
[1741630567827,20.18395018,119.5,119.46,127.65494133]
[1741630568038,0.18395018,119.5,119.45,72.39681578]
[1741630568533,20.0,119.49,119.47,72.39681578]
[1741630568741,20.0,119.49,119.44,72.39681578]
[1741630568742,12.74,119.48,119.44,72.39681578]
[1741630569131,12.74,119.48,119.45,72.39681578]
[1741630569321,0.17808609,119.46,119.42,126.4]
[1741630569517,0.17808609,119.46,119.45,72.39681578]
[1741630569933,221.91808609,119.46,119.44,72.39681578]
[1741630570538,226.94068609,119.46,119.4,126.43]
[1741630570736,226.94068609,119.46,119.4,0.03]
[1741630570936,72.39681578,119.45,119.4,72.42681578]
[1741630571310,221.91808609,119.46,119.41,72.39681578]
[1741630571515,221.91808609,119.46,119.43,72.39681578]
[1741630572253,299.33750187,119.46,119.41,72.39681578]
[1741630572812,299.33750187,119.46,119.4,72.42681578]
[1741630573037,221.91808609,119.46,119.42,72.39681578]
[1741630573219,221.91808609,119.46,119.4,0.03]
[1741630573220,294.31490187,119.46,119.41,72.39681578]
[1741630573438,221.91808609,119.46,119.43,72.39681578]
[1741630573739,12.74,119.45,119.41,72.39681578]
[1741630574449,12.74,119.45,119.4,126.43]
[1741630574743,12.74,119.45,119.42,72.39681578]
[1741630574945,12.74,119.45,119.43,72.39681578]
[1741630575628,17.763,119.45,119.4,198.82681578]
[1741630575952,72.39681578,119.44,119.4,0.03]
[1741630576243,91.04646464,119.44,119.4,0.03]
[1741630576545,103.94006464,119.44,119.4,0.03]
[1741630576750,72.39681578,119.43,119.4,0.03]
[1741630577247,31.54324886,119.44,119.4,0.03]
[1741630577450,5.0238,119.43,119.4,0.03]
[1741630577655,17.917,119.44,119.4,72.42681578]
[1741630578020,36.56664886,119.44,119.4,0.03]
[1741630578331,102.87241578,119.44,119.4,0.03]
[1741630578530,17.917,119.44,119.4,72.42681578]
[1741630578839,72.39681578,119.42,119.4,0.03]
[1741630579243,20.0,119.38,119.33,0.03]
[1741630579434,5.0272,119.35,119.33,0.03]
[1741630579634,72.39681578,119.34,119.33,0.03]
[1741630579846,72.39681578,119.34,119.28,0.063]
[1741630579847,20.0,119.31,119.28,0.063]
[1741630580158,12.74,119.3,119.29,72.39681578]
[1741630580346,12.74,119.3,119.28,72.45981578]
[1741630580533,12.74,119.3,119.28,0.063]
[1741630580733,12.74,119.3,119.28,72.45981578]
[1741630581545,12.74,119.3,119.29,72.39681578]
[1741630582260,17.7693,119.3,119.28,0.063]
[1741630582551,20.0,119.27,119.26,0.03]
[1741630582747,314.27681578,119.27,119.26,0.03]
[1741630583248,20.0,119.22,119.21,0.03]
[1741630583434,12.74,119.22,119.21,0.03]
[1741630583750,12.74,119.22,119.21,72.42681578]
[1741630584541,12.74,119.22,119.17,0.14216157]
[1741630584882,12.74,119.22,119.17,126.54216157]
[1741630585050,17.23545276,119.22,119.21,72.39681578]
[1741630585218,17.23545276,119.22,119.21,31.45831914]
[1741630585850,17.23545276,119.22,119.18,126.4]
[1741630585851,22.26815276,119.22,119.18,72.39681578]
[1741630586151,22.26815276,119.22,119.17,13.91696035]
[1741630586333,72.39681578,119.21,119.16,72.39681578]
[1741630586643,20.0,119.17,119.14,0.03]
[1741630586856,241.98,119.17,119.14,0.03]
[1741630587542,241.98,119.17,119.14,72.42681578]
[1741630587842,221.98,119.17,119.15,72.39681578]
[1741630588043,221.98,119.17,119.16,72.39681578]
[1741630588246,221.98,119.17,119.14,0.03]
[1741630588247,240.03860017,119.17,119.14,0.03]
[1741630588423,18.64964886,119.16,119.14,0.03]
[1741630588625,20.0,119.15,119.14,0.03]
[1741630588842,235.00370017,119.17,119.14,0.03]
[1741630589233,0.17797474,119.15,119.14,0.03]
[1741630589435,0.17797474,119.15,119.14,72.42681578]
[1741630589730,0.17797474,119.15,119.14,0.03]
[1741630590147,0.17797474,119.15,119.14,72.42681578]
[1741630590350,0.17797474,119.15,119.14,80.82021578]
[1741630590517,0.15328031,119.16,119.14,279.9013547]
[1741630590720,0.180871,119.18,119.17,0.14216157]
[1741630590939,0.17007697,119.19,119.18,0.14216157]
[1741630591144,0.17007697,119.19,119.18,72.39681578]
[1741630591735,0.17007697,119.19,119.18,198.79681578]
[1741630591924,12.93007697,119.19,119.14,126.43]
[1741630592122,18.64964886,119.18,119.14,72.42681578]
[1741630592326,72.39681578,119.17,119.14,0.03]
[1741630592544,18.64964886,119.15,119.14,0.03]
[1741630592735,294.53681578,119.15,119.14,0.03]
[1741630593028,313.32862621,119.15,119.14,0.03]
[1741630593652,245.82524886,119.15,119.14,0.03]
[1741630595240,327.62524886,119.15,119.14,0.0001]
[1741630595550,234.9,119.15,119.08,8.3977]
[1741630595756,234.9,119.15,119.08,134.7977]
[1741630595928,234.9,119.15,119.12,72.39681578]
[1741630596249,234.9,119.15,119.13,72.39681578]
[1741630597053,239.9357,119.15,119.11,72.39681578]
[1741630597239,20.0,119.12,119.1,72.39681578]
[1741630597435,20.0,119.12,119.11,72.39681578]
[1741630597641,234.9,119.15,119.11,72.39681578]
[1741630597832,239.9358,119.15,119.12,72.39681578]
[1741630598155,20.0,119.13,119.12,72.39681578]
[1741630598461,234.9,119.15,119.12,72.39681578]
[1741630598641,234.9,119.15,119.14,72.39681578]
[1741630598824,234.9,119.15,119.1,207.19291578]
[1741630598825,234.9,119.15,119.1,8.3961]
[1741630599028,234.9,119.15,119.12,72.39681578]
[1741630599831,239.9358,119.15,119.11,72.39681578]
[1741630600028,239.9358,119.15,119.09,126.4]
[1741630600242,239.9358,119.15,119.11,72.39681578]
[1741630600543,234.9,119.15,119.13,72.39681578]
[1741630600859,234.9,119.15,119.12,72.39681578]
[1741630601057,234.9,119.15,119.1,126.4]
[1741630601058,20.0,119.12,119.1,72.39681578]
[1741630601358,20.0,119.12,119.11,72.39681578]
[1741630601551,234.9,119.15,119.11,72.39681578]
[1741630601748,234.9,119.15,119.13,72.39681578]
[1741630601960,239.9356,119.15,119.12,72.39681578]
[1741630602159,239.9356,119.15,119.11,198.79681578]
[1741630602455,20.0,119.12,119.11,0.03]
[1741630602757,20.0,119.12,119.11,72.42681578]
[1741630603152,239.9356,119.15,119.11,72.42681578]
[1741630603867,20.0,119.13,119.11,0.03]
[1741630604040,20.0,119.13,119.11,72.42681578]
[1741630604640,20.0,119.12,119.11,0.03]
[1741630605738,25.0369,119.12,119.11,0.03]
[1741630606633,43.68654886,119.12,119.11,0.03]
[1741630607143,5.0367,119.13,119.11,0.03]
[1741630607456,20.0,119.12,119.11,72.42681578]
[1741630607664,321.7357,119.15,119.11,72.42681578]
[1741630608044,20.0,119.12,119.11,0.03]
[1741630608356,239.9357,119.15,119.11,72.42681578]
[1741630608662,239.9357,119.15,119.11,72.39336578]
[1741630608862,234.9,119.15,119.12,72.39681578]
[1741630609059,239.9356,119.15,119.13,72.39681578]
[1741630609264,0.16435065,119.14,119.11,72.39681578]
[1741630609443,0.16435065,119.14,119.1,72.39681578]
[1741630609950,0.16435065,119.14,119.12,72.39681578]
[1741630610741,5.20045065,119.14,119.12,72.39681578]
[1741630611140,5.20045065,119.14,119.1,72.39681578]
[1741630611654,23.85009951,119.14,119.1,72.39681578]
[1741630611858,18.64964886,119.13,119.1,72.39681578]
[1741630612057,17.79065065,119.14,119.1,72.39681578]
[1741630612446,222.36,119.13,119.1,72.39681578]
[1741630612642,222.36,119.13,119.04,199.06797741]
[1741630612643,91.04646464,119.12,119.04,199.06797741]
[1741630612842,18.64964886,119.12,119.04,199.06797741]
[1741630613042,18.64964886,119.1,119.07,72.39681578]
[1741630613269,12.76,119.09,119.07,72.39681578]
[1741630613453,12.76,119.09,119.08,72.39681578]
[1741630614948,12.76,119.09,119.08,80.93667735]
[1741630615159,222.36,119.13,119.09,0.14216157]
[1741630615345,222.36,119.13,119.12,72.39681578]
[1741630615968,222.36,119.13,119.12,207.33377735]
[1741630616343,222.36,119.13,119.12,207.19161578]
[1741630617070,222.36,119.13,119.12,207.47593892]
[1741630617274,0.22735065,119.14,119.13,0.14216157]
[1741630617570,0.22735065,119.14,119.13,72.39681578]
[1741630617872,0.22735065,119.14,119.13,72.53897735]
[1741630618060,0.22735065,119.14,119.13,207.47523892]
[1741630618756,0.15702983,119.15,119.14,126.68427249]
[1741630618957,0.15702983,119.15,119.14,271.47790405]
[1741630619173,2.983e-05,119.15,119.14,271.47790405]
[1741630619551,2.983e-05,119.15,119.14,290.12755291]
[1741630619747,1.109e-05,119.16,119.15,18.933972]
[1741630619950,4.985e-05,119.18,119.17,38.933972]
[1741630620162,3.825e-05,119.2,119.19,18.933972]
[1741630620348,3.825e-05,119.2,119.19,72.39681578]
[1741630620542,3.825e-05,119.2,119.19,72.53897735]
[1741630620767,3.825e-05,119.2,119.19,72.68113892]
[1741630621350,3.825e-05,119.2,119.19,72.53897735]
[1741630621544,3.825e-05,119.2,119.19,72.68113892]
[1741630621962,3.825e-05,119.2,119.19,72.53897735]
[1741630622167,3.825e-05,119.2,119.19,80.92887735]
[1741630622388,3.825e-05,119.2,119.19,81.07103892]
[1741630622554,0.15780952,119.21,119.2,0.14216157]
[1741630622762,0.15780952,119.21,119.2,144.93579313]
[1741630622977,0.15780952,119.21,119.2,72.39681578]
[1741630623285,0.15780952,119.21,119.18,12.59177691]
[1741630623286,5.19090952,119.21,119.19,72.39681578]
[1741630623587,0.15780952,119.21,119.17,72.39681578]
[1741630623788,0.15780952,119.21,119.2,72.39681578]